[Event "Najdorf Memorial-A 2022"]
[Site "Warsaw"]
[Date "2022.07.16"]
[Round "8.16"]
[White "Szewczyk, Mariusz"]
[Black "Kazmierowski, Tymon"]
[Result "1/2-1/2"]
[ECO "B52"]
[WhiteElo "2103"]
[BlackElo "1961"]
[Annotator "ChessBase"]
[PlyCount "69"]
[EventDate "2022.07.09"]
[EventType "swiss"]
[EventCountry "POL"]
[SourceTitle "playchess.com"]
[Source "ChessBase"]
[SourceQuality "1"]
[TimeControl "40/5400+30:1800+30"]

1. e4 {[%emt 0:00:50]} c5 {[%emt 0:00:05]} 2. Nf3 {[%emt 0:00:06]} d6 {[%emt 0:00:04]} 3. Bb5+ {[%emt 0:00:17]} Bd7 {[%emt 0:00:06]} 4. Bxd7+ {[%emt 0:00:05]} Nxd7 {[%emt 0:00:09]} 5. O-O {[%emt 0:00:15]} Ngf6 {[%emt 0:00:04]} 6. Qe2 {[%emt 0:00:03]} e6 {[%emt 0:01:13]} 7. b3 {[%emt 0:03:58]} Be7 {[%emt 0:00:49]} 8. Bb2 {[%emt 0:00:04]} O-O {[%emt 0:00:40]} 9. c4 {[%emt 0:00:05]} Rc8 {[%emt 0:01:20]} 10. Nc3 {[%emt 0:00:56]} a6 {[%emt 0:00:39]} 11. d4 {[%emt 0:00:09]} cxd4 {[%emt 0:00:35]} 12. Nxd4 {[%emt 0:00:05]} Qc7 {[%emt 0:08:41]} 13. Kh1 {[%emt 0:00:20]} Rfe8 {[%emt 0:03:27]} 14. f4 {[%emt 0:05:06]} Bf8 {[%emt 0:02:15]} 15. Rae1 {[%emt 0:04:25]} g6 {[%emt 0:17:42]} 16. Qf3 {[%emt 0:04:32]} Bg7 {[%emt 0:03:31]} 17. Rd1 {[%emt 0:02:33]} Qc5 {[%emt 0:05:26]} 18. Nc2 {[%emt 0:03:03]} Qc6 {[%emt 0:10:07]} 19. Rd2 {[%emt 0:17:02]} Nc5 {[%emt 0:09:56]} 20. Nd4 {[%emt 0:09:03]} Qc7 {[%emt 0:01:21]} 21. Rfd1 {[%emt 0:01:25]} b6 {[%emt 0:03:43]} 22. Nde2 {[%emt 0:13:07]} Rcd8 {[%emt 0:05:32]} 23. Ng3 {[%emt 0:03:19]} Rd7 {[%emt 0:03:28]} 24. f5 {[%emt 0:03:29]} exf5 {[%emt 0:05:02]} 25. exf5 {[%emt 0:01:18]} Rde7 {[%emt 0:03:30]} 26. Re2 {[%emt 0:07:50]} Rxe2 {[%emt 0:02:58]} 27. Ncxe2 {[%emt 0:00:16]} Nfe4 {[%emt 0:02:44]} 28. Bxg7 {[%emt 0:00:31]} Kxg7 {[%emt 0:00:01]} 29. Nf4 {[%emt 0:02:40]} Nxg3+ {[%emt 0:04:38]} 30. Qxg3 {[%emt 0:04:00]} Ne4 {[%emt 0:00:30]} 31. Qf3 {[%emt 0:00:17]} Qc5 {[%emt 0:00:27]} 32. Nd3 {[%emt 0:04:59]} Qd4 {[%emt 0:02:26]} 33. fxg6 {[%emt 0:01:02]} hxg6 {[%emt 0:00:17]} 34. Rf1 {[%emt 0:00:18]} Re7 {[%emt 0:01:18]} 35. Qd1 {[%emt 0:06:10]} 1/2-1/2

[Event "Najdorf Memorial-A 2022"]
[Site "Warsaw"]
[Date "2022.07.16"]
[Round "8.17"]
[White "Niezhentsev, Kyrylo"]
[Black "Vanduyfhuys, Daria"]
[Result "1-0"]
[ECO "A14"]
[WhiteElo "1721"]
[BlackElo "2094"]
[Annotator "ChessBase"]
[PlyCount "63"]
[EventDate "2022.07.09"]
[EventType "swiss"]
[EventCountry "POL"]
[SourceTitle "playchess.com"]
[Source "ChessBase"]
[SourceQuality "1"]
[TimeControl "40/5400+30:1800+30"]

1. c4 {[%emt 0:00:03]} Nf6 {[%emt 0:00:17]} 2. g3 {[%emt 0:00:06]} e6 {[%emt 0:00:29]} 3. Bg2 {[%emt 0:00:04]} d5 {[%emt 0:00:06]} 4. Nf3 {[%emt 0:00:05]} Be7 {[%emt 0:01:22]} 5. O-O {[%emt 0:00:08]} O-O {[%emt 0:00:07]} 6. d4 {[%emt 0:00:03]} dxc4 {[%emt 0:00:33]} 7. Qc2 {[%emt 0:00:08]} a6 {[%emt 0:00:36]} 8. a4 {[%emt 0:00:07]} Bd7 {[%emt 0:00:35]} 9. Rd1 {[%emt 0:00:10]} Bc6 {[%emt 0:00:54]} 10. Nc3 {[%emt 0:00:08]} Qe8 {[%emt 0:17:03]} 11. e4 {[%emt 0:04:29]} b5 {[%emt 0:02:08]} 12. d5 {[%emt 0:01:52]} Bb7 {[%emt 0:07:49]} 13. dxe6 {[%emt 0:08:23]} fxe6 {[%emt 0:03:30]} 14. axb5 {[%emt 0:01:35]} axb5 {[%emt 0:00:08]} 15. Rxa8 {[%emt 0:00:13]} Bxa8 {[%emt 0:00:04]} 16. Nd4 {[%emt 0:00:36]} b4 {[%emt 0:26:43]} 17. Ncb5 {[%emt 0:02:26]} Qh5 {[%emt 0:01:12]} 18. Rf1 {[%emt 0:28:32]} Qc5 {[%emt 0:06:45]} 19. Nxe6 {[%emt 0:14:52]} Qxb5 {[%emt 0:00:21]} 20. Nxc7 {[%emt 0:00:30]} Bxe4 {[%emt 0:19:35]} 21. Bxe4 {[%emt 0:10:25]} Qe5 {[%emt 0:00:21]} 22. Qxc4+ {[%emt 0:00:11]} Kh8 {[%emt 0:00:19]} 23. Bg2 {[%emt 0:00:31]} Rc8 {[%emt 0:04:14]} 24. Bf4 {[%emt 0:00:33]} Rxc7 {[%emt 0:01:08]} 25. Qxc7 {[%emt 0:00:24]} Qxc7 {[%emt 0:00:16]} 26. Bxc7 {[%emt 0:00:01]} Na6 {[%emt 0:00:15]} 27. Bb6 {[%emt 0:00:52]} Kg8 {[%emt 0:00:43]} 28. Rc1 {[%emt 0:00:50]} Kf7 {[%emt 0:00:57]} 29. Bf1 {[%emt 0:01:13]} Nb8 {[%emt 0:00:06]} 30. Bc4+ {[%emt 0:00:11]} Kg6 {[%emt 0:00:17]} 31. Be6 {[%emt 0:00:56]} Bd6 {[%emt 0:03:27]} 32. Bc7 {[%emt 0:01:17]} 1-0

[Event "Najdorf Memorial-A 2022"]
[Site "Warsaw"]
[Date "2022.07.17"]
[Round "9.1"]
[White "Lewandrowski, Tomasz"]
[Black "Kaczmarek, Arkadiusz"]
[Result "0-1"]
[ECO "D00"]
[WhiteElo "1902"]
[BlackElo "2147"]
[Annotator "TA"]
[PlyCount "78"]
[EventDate "2022.07.09"]
[EventType "swiss"]
[EventCountry "POL"]
[SourceTitle "playchess.com"]
[Source "ChessBase"]
[SourceQuality "1"]
[TimeControl "40/5400+30:1800+30"]

{[%evp 9,78,-11,3,4,4,0,4,3,8,8,6,2,25,22,25,0,5,-9,29,19,28,-108,-108,-84,-92,-101,-104,-111,-107,-124,-104,-92,-105,-124,-125,-91,-136,-123,-116,-115,-146,-156,-104,-297,-283,-301,-306,-285,-295,-275,-282,-418,-413,-420,-310,-334,-337,-330,-206,-197,-217,-294,-324,-514,-501,-560,-568,-561,-560,-588,-595]} 1. d4 {[%emt 0:00:28]} d5 {[%emt 0:00:14]} 2. Nc3 {[%emt 0:00:05]} Nf6 {[%emt 0:00:18]} 3. Bf4 {[%emt 0:00:20]} a6 {[%emt 0:00:16]} 4. e3 {[%emt 0:00:09]} Bf5 {[%emt 0:00:17]} 5. f3 {[%emt 0:00:20]} e6 {[%emt 0:00:21]} 6. g4 {[%emt 0:00:09] D00: 1 d4 d5: Unusual lines.} Bg6 {[%emt 0:00:14]} 7. h4 {[%emt 0:00:06] [#] Hoping for h5.} h5 {[%emt 0:00:23]} 8. g5 {[%emt 0:00:11] The position is equal.} Nfd7 {[%emt 0:00:16]} 9. Bd3 {[%emt 0:00:11]} Bxd3 {[%emt 0:00:23]} 10. Qxd3 {[%emt 0:00:01]} g6 {[%emt 0:00:29]} 11. e4 {[%emt 0:04:35]} c6 {[%emt 0:00:20][%cal Bc7c6,Bc6d5][%mdl 32]} 12. O-O-O {[%emt 0:01:24]} Bg7 {[%emt 0:02:41]} 13. Nge2 {[%emt 0:09:09]} O-O {[%emt 0:03:03] [#]} 14. Kb1 $146 {[%emt 0:09:29]} ({Predecessor:} 14. Bd6 Re8 15. f4 Nb6 16. e5 Nc4 17. Bxb8 Rxb8 18. Ng3 Qb6 19. b3 Na3 20. Na4 {0-1 (72) Bifulco,M (2338)-Marcziter,D (2264) Chess.com INT 2021}) 14... b5 {[%emt 0:03:11]} 15. exd5 {[%emt 0:06:16]} (15. Bd6 $11 {keeps the balance.}) 15... cxd5 $17 {[%emt 0:03:45]} 16. Bd6 {[%emt 0:00:23]} Re8 {[%emt 0:00:24]} 17. Nf4 {[%emt 0:00:39][%cal Of4g6] Nxg6! is the strong threat.} Nf8 {[%emt 0:06:47]} 18. Be5 {[%emt 0:03:54]} Bxe5 {[%emt 0:04:06]} 19. dxe5 {[%emt 0:00:09][%cal Oc3e4]} Nc6 {[%emt 0:00:21][%cal Bb8c6,Bc6e7,Be7f5][%mdl 32]} 20. Qe2 {[%emt 0:05:40]} Qc7 {[%emt 0:02:20]} 21. Rhe1 {[%emt 0:05:19]} Nd7 {[%emt 0:02:30][%cal Rc6e5]} 22. Nxh5 {[%emt 0:07:50]} gxh5 {[%emt 0:09:04]} 23. f4 {[%emt 0:00:01]} Ne7 {[%emt 0:07:13] Threatens to win with ...Rac8.} (23... b4 24. Qxh5 Ne7 25. Ne2) 24. Qxh5 {[%emt 0:00:34]} Nf8 {[%emt 0:00:22]} 25. Rd2 {[%emt 0:05:47]} Qc4 {[%emt 0:05:12]} ({Black should try} 25... Qa5 {White must now prevent ...b4.} 26. Red1 Rac8) 26. Nd1 $2 {[%emt 0:03:21] This move loses the game for White.} (26. Qg4 $17) 26... Nfg6 $19 {[%emt 0:07:30]} (26... Qxf4 27. Rf2 Qb4 28. Qxf7+ Kh8 29. Rg1 $18) 27. Ne3 {[%emt 0:01:15]} Qxf4 {[%emt 0:02:27]} 28. Ng4 {[%emt 0:01:32]} Nf5 {[%emt 0:00:38]} (28... Qxd2 $2 29. Nf6+ Kg7 30. Qh6#) 29. Rf2 {[%emt 0:00:53] [#]} Qg3 {[%emt 0:02:17]} 30. Rh1 {[%emt 0:04:43]} (30. Nf6+ {was necessary.} Kf8 31. Qe2 Ngxh4 32. Rd1) 30... Kf8 {[%emt 0:14:09][%cal Bg8f8,Bf8e7,Be7d6][%mdl 32]} 31. Rff1 {[%emt 0:02:16]} Ke7 {[%emt 0:06:43] And now ...Nf4 would win.} 32. Nh6 {[%emt 0:04:18]} Nxh6 {[%emt 0:10:50]} (32... Ngxh4 $2 33. Qxf7+ Kd8 34. Qb7 Nxh6 35. gxh6 $18) ({Not} 32... Nfxh4 33. Rxf7+ Kd8 34. Ng8 $11) ({Much less strong is} 32... Qxe5 33. Nxf5+ exf5 34. Re1 $18) 33. Qxh6 {[%emt 0:00:02][%cal Of1f7]} Rf8 {[%emt 0:03:02]} ({Wrong is} 33... Nxe5 $2 34. Rhg1 Qh2 35. Rh1 $19) (33... Qxe5 $2 34. Qh7 Rf8 35. h5 $19) 34. h5 {[%emt 0:00:24]} Nxe5 {[%emt 0:01:31] aiming for ...Ng4.} 35. Qf6+ {[%emt 0:06:04]} Kd6 {[%emt 0:00:02]} 36. Rfg1 {[%emt 0:03:03]} (36. Rhg1 $142 Qh2 37. Rh1) 36... Qf3 {[%emt 0:01:16] Black is clearly winning.} 37. h6 {[%emt 0:04:51]} Qxf6 {[%emt 0:00:31]} 38. gxf6 {[%emt 0:00:01]} Nd7 {[%emt 0:02:07]} 39. Rg7 {[%emt 0:01:41]} Nxf6 {[%emt 0:00:41] Weighted Error Value: White=0.34/Black=0.11 (very precise)} 0-1

[Event "Najdorf Memorial-A 2022"]
[Site "Warsaw"]
[Date "2022.07.17"]
[Round "9.2"]
[White "Vanduyfhuys, Daria"]
[Black "Starosciak, Szymon"]
[Result "1/2-1/2"]
[ECO "D43"]
[WhiteElo "2094"]
[BlackElo "1901"]
[Annotator "TA"]
[PlyCount "127"]
[EventDate "2022.07.09"]
[EventType "swiss"]
[EventCountry "POL"]
[SourceTitle "playchess.com"]
[Source "ChessBase"]
[SourceQuality "1"]
[TimeControl "40/5400+30:1800+30"]

{[%evp 13,127,17,18,16,27,18,16,8,26,9,16,16,11,20,13,16,17,8,18,0,0,-34,-39,-35,56,78,89,96,96,39,137,139,137,-37,-47,-75,-90,-77,-85,-142,-117,-141,-141,-133,-140,-163,-163,-163,-163,-163,-140,-189,-106,-106,-106,-106,-90,-99,-99,-99,-17,-15,-15,-16,-8,-12,-8,-8,-8,-8,-8,-11,-8,-44,-11,-44,-44,-44,-37,-37,-37,-37,-37,-37,-37,-37,-37,-37,-37,-37,-37,-37,-37,-37,-8,-8,-8,-37,-6,-8,0,-35,0,0,0,0,0,0,0,0,0,0,0,0,0,0]} 1. d4 {[%emt 0:00:02]} d5 {[%emt 0:00:03]} 2. c4 {[%emt 0:00:03]} c6 {[%emt 0:00:03]} 3. Nf3 {[%emt 0:00:07]} Nf6 {[%emt 0:00:14]} 4. Nc3 {[%emt 0:00:06]} e6 {[%emt 0:00:08]} 5. Bg5 {[%emt 0:00:07]} h6 {[%emt 0:00:58]} 6. Bxf6 {[%emt 0:00:10]} Qxf6 {[%emt 0:00:05]} 7. e3 {[%emt 0:00:05][%cal Be2e3,Be3e4,Be4e5][%mdl 32]} g6 {[%emt 0:02:31]} 8. Bd3 {[%emt 0:00:35] D43: Semi-Slav: 5 Bg5 h6.} Bg7 {[%emt 0:03:19]} 9. O-O {[%emt 0:00:42]} O-O {[%emt 0:01:36]} 10. e4 {[%emt 0:13:59]} Qd8 {[%emt 0:07:12]} 11. e5 {[%emt 0:08:26]} dxc4 {[%emt 0:03:46]} 12. Bxc4 {[%emt 0:00:07]} c5 {[%emt 0:02:22]} 13. dxc5 {[%emt 0:22:25]} Nd7 {[%emt 0:04:25]} 14. Qe2 {[%emt 0:03:25]} Nxc5 {[%emt 0:12:34]} 15. Rfd1 {[%emt 0:00:28]} Qe7 {[%emt 0:09:50] [#]} 16. Rd4 $146 {[%emt 0:19:22]} ({Predecessor:} 16. b4 Nd7 17. a3 Nb6 18. Bb5 Bd7 19. Bxd7 Nxd7 20. Qb5 Nb6 21. Ne4 Nd5 22. Rdc1 {½-½ (66) Martirosyan,H (2636)-Mchedlishvili,M (2571) Chess.com INT 2021}) 16... a6 {[%emt 0:05:41]} 17. b4 {[%emt 0:06:04]} Nd7 {[%emt 0:00:22]} 18. Bb3 {[%emt 0:01:35] [#]} Nb8 {[%emt 0:01:32]} (18... Nxe5 $1 $15 19. Nxe5 Qc7) 19. Rad1 $14 {[%emt 0:14:37]} Nc6 {[%emt 0:00:48][%csl LRb4,LRd4] [#]} 20. Rd6 {[%emt 0:00:07]} Nxb4 {[%emt 0:00:47] [#]} 21. Qe3 {[%emt 0:03:03]} (21. Na4 $1 $16) 21... Nc6 {[%emt 0:02:27]} (21... a5 $14) 22. Qc5 $16 {[%emt 0:00:23] And now Rxc6 would win. 0x0.001eb8b77ebbdp-1022s more active pieces. The black rooks are badly placed.} Re8 {[%emt 0:02:27]} 23. Ba4 $2 {[%emt 0:01:55]} ({Better is} 23. Ne4 $16) 23... b5 $1 $15 {[%emt 0:01:13]} (23... Bd7 24. Ne4 $16) 24. Rxc6 {[%emt 0:04:00] Threatens to win with Qxe7.} ({Much weaker is} 24. Qxc6 Bb7 25. Qd7 bxa4 26. Qxe7 Rxe7 27. Nxa4 Bxf3 28. gxf3 Bxe5 $17) 24... Qxc5 {[%emt 0:00:45]} 25. Rxc5 {[%emt 0:00:02]} bxa4 {[%emt 0:00:16]} 26. Rc7 {[%emt 0:00:57]} ({White should try} 26. Nxa4 Bb7 27. Nb6) 26... Rb8 $17 {[%emt 0:03:10]} 27. Nxa4 {[%emt 0:00:31]} Bb7 {[%emt 0:00:42]} 28. Rc5 {[%emt 0:00:21]} Bd5 {[%emt 0:03:02]} 29. Ra5 {[%emt 0:00:41]} Bxa2 {[%emt 0:02:43]} 30. Rxa6 {[%emt 0:00:22]} Bd5 {[%emt 0:01:22]} 31. Re1 {[%emt 0:00:34]} Rec8 {[%emt 0:02:14] Inhibits Nc5.} 32. h3 {[%emt 0:00:33]} (32. Rb6 $17 {was worth a try.}) 32... Rc6 {[%emt 0:11:49]} (32... Bxf3 $19 33. gxf3 Rb5) 33. Rxc6 {[%emt 0:00:14]} Bxc6 {[%emt 0:00:05] A strong pair of Bishops.} 34. Nc5 {[%emt 0:00:14]} Bxf3 {[%emt 0:04:32]} 35. gxf3 {[%emt 0:00:03][%mdl 4096] Endgame KRB-KRN} Rb5 {[%emt 0:02:48]} 36. Nd3 {[%emt 0:00:09]} Rb3 {[%emt 0:03:41]} (36... Rd5 $17 37. Re3 g5) 37. Re3 $11 {[%emt 0:00:21]} g5 {[%emt 0:02:11]} 38. Kg2 {[%emt 0:01:15]} Rb5 {[%emt 0:01:30]} 39. h4 {[%emt 0:01:11]} Kh7 {[%emt 0:01:29]} 40. hxg5 {[%emt 0:00:00]} hxg5 {[%emt 0:00:00]} 41. Kg3 {[%emt 0:01:23]} Rd5 {[%emt 0:02:31]} 42. Kg4 {[%emt 0:16:31]} Rd4+ {[%emt 0:06:35]} 43. f4 {[%emt 0:00:35]} Bh6 {[%emt 0:03:23][%cal Rg5f4]} 44. Rf3 {[%emt 0:01:16]} gxf4 {[%emt 0:10:42]} 45. Kh5 {[%emt 0:01:18]} Kg7 {[%emt 0:02:46]} 46. Rh3 {[%emt 0:00:58]} Rd5 {[%emt 0:01:49]} 47. Kg4 {[%emt 0:01:04]} Kh7 {[%emt 0:00:32]} 48. Rf3 {[%emt 0:00:17]} ({But not} 48. Nxf4 Rxe5 49. Ng2 (49. Nd3 Rd5 $17) 49... Re4+ 50. Kf3 f5 $17) 48... Kg8 {[%emt 0:02:17]} 49. Rh3 {[%emt 0:00:33]} Kg7 {[%emt 0:01:46]} 50. Rf3 {[%emt 0:00:06]} Rd4 {[%emt 0:01:48]} 51. Kh5 {[%emt 0:00:22]} Ra4 {[%emt 0:00:57]} 52. Rh3 {[%emt 0:00:38]} Ra1 {[%emt 0:00:35]} 53. Kg4 {[%emt 0:03:14]} Rd1 {[%emt 0:01:20]} 54. Rf3 {[%emt 0:01:24]} Rg1+ {[%emt 0:00:13]} 55. Kh4 {[%emt 0:00:40]} Rh1+ {[%emt 0:02:28]} 56. Kg4 {[%emt 0:00:04]} Rg1+ {[%emt 0:00:16]} 57. Kh4 {[%emt 0:00:05]} Kg6 {[%emt 0:00:34] aiming for ...Kf5.} 58. Nxf4+ {[%emt 0:00:17] The position is equal.} Bxf4 {[%emt 0:00:18]} 59. Rxf4 {[%emt 0:00:03] KR-KR} Re1 {[%emt 0:00:18]} 60. Rf6+ {[%emt 0:00:10]} Kg7 {[%emt 0:00:04]} 61. f4 {[%emt 0:00:31]} Rg1 {[%emt 0:00:46]} 62. Kh5 {[%emt 0:00:34]} Kf8 {[%emt 0:00:39]} 63. Kh6 {[%emt 0:00:47]} Rg2 {[%emt 0:00:22]} 64. Kh5 {[%emt 0:01:07] White happily takes the draw.  Weighted Error Value: White=0.14 (very precise) /Black=0.14 (very precise)} 1/2-1/2

[Event "Najdorf Memorial-A 2022"]
[Site "Warsaw"]
[Date "2022.07.17"]
[Round "9.3"]
[White "Harazinska, Magdalena"]
[Black "Pesko, Tomasz"]
[Result "1-0"]
[ECO "E73"]
[WhiteElo "1976"]
[BlackElo "1830"]
[Annotator "TA"]
[PlyCount "95"]
[EventDate "2022.07.09"]
[EventType "swiss"]
[EventCountry "POL"]
[SourceTitle "playchess.com"]
[Source "ChessBase"]
[SourceQuality "1"]
[TimeControl "40/5400+30:1800+30"]

{[%evp 13,94,7,9,11,12,0,22,25,19,13,37,35,38,35,37,31,47,47,52,41,104,83,116,116,198,184,168,181,162,94,111,90,73,80,77,7,9,6,16,0,12,17,41,0,2,0,79,79,79,79,617,611,611,606,894,1304,850,1338,1266,1238,1226,1226,1105,1098,1016,989,953,893,29989,29981,29992,29987,29993,29991,29994,29993,29993,29994,29997,29996,29998,29999,29999]} 1. d4 Nf6 2. c4 g6 3. Nc3 Bg7 4. e4 d6 5. Be2 O-O 6. Bg5 c5 7. d5 e6 8. dxe6 {E75: King's Indian: Averbakh Variation: 6...c5 7 d5 e6.} Bxe6 9. Nf3 a6 10. O-O {The position is equal.} Nc6 11. Nd5 Bxd5 12. exd5 {[#]} Nb8 $146 ({Predecessor:} 12... Ne7 13. a4 Rb8 14. Bd3 h6 15. Bd2 b5 16. b3 Nd7 17. Rb1 {1-0 (40) Guner,B (2205)-Demirel,T (2310) Turkey 1993}) 13. Qc2 Nbd7 14. h3 Qc7 15. Rfe1 b5 16. cxb5 Nxd5 (16... axb5 $14 17. Bxb5 h6) 17. Qd2 $16 N7b6 18. bxa6 Nb4 {[#]} (18... c4 $16) 19. Bb5 $1 $18 {And now Re7 would win.} Nc8 {Prevents Re7.} 20. a4 Nxa6 {[#]} 21. Rad1 (21. Bh6 $1 $18 {[%cal Rh6g7]}) 21... Qb7 $16 22. b3 {White is more active.} Nc7 23. Bc4 {This bishop pair is nice.} Nb6 24. Be7 ({But not} 24. Qxd6 Nxc4 25. bxc4 Ne6 $11) (24. Bd3 $16) 24... Nxc4 $11 25. bxc4 Rfe8 26. Bxd6 Ne6 27. Qd5 Qa7 28. Ng5 Nxg5 29. Qxg5 Qxa4 (29... Bd4 $1 $11 {remains equal.}) 30. Qxc5 $16 Rec8 31. Qd5 $36 {[%mdl 2048] Black is under strong pressure.} Qxc4 $2 {[%mdl 8192] [#] This costs Black the game.} (31... Bc3 $16) 32. Re8+ $3 $18 {[%mdl 512]} Rxe8 33. Qxc4 Ra1 34. Rxa1 Bxa1 35. Qa4 Re1+ 36. Kh2 {Threatens to win with Qa5.} Be5+ 37. Bxe5 Rxe5 {[%mdl 4096] Endgame KQ-KR} 38. Qa8+ Kg7 39. Qa1 f6 40. Qa7+ Kh6 41. Qf7 {White mates.} Rf5 42. f3 Rf4 43. Kg3 Rf5 44. Kf2 Rf4 45. g4 f5 46. Kg3 Ra4 47. Qf8+ Kg5 48. h4# {Weighted Error Value: White=0.13 (very precise) /Black=0.65} 1-0

[Event "Najdorf Memorial-A 2022"]
[Site "Warsaw"]
[Date "2022.07.17"]
[Round "9.4"]
[White "Kaczmarska, Joanna"]
[Black "Siekanska, Zuzanna"]
[Result "0-1"]
[ECO "A06"]
[WhiteElo "1965"]
[BlackElo "1712"]
[Annotator "TA"]
[PlyCount "102"]
[EventDate "2022.07.09"]
[EventType "swiss"]
[EventCountry "POL"]
[SourceTitle "playchess.com"]
[Source "ChessBase"]
[SourceQuality "1"]
[TimeControl "40/5400+30:1800+30"]

{[%evp 11,102,7,15,21,27,15,16,9,16,17,16,21,37,0,0,0,0,10,9,0,0,0,0,0,0,-4,0,0,0,0,6,33,31,0,0,0,0,0,0,-7,0,-27,-16,-41,-41,-41,-41,-41,-43,-43,-27,-64,-64,-343,-64,-71,-37,-37,-7,-15,0,0,0,0,0,0,0,0,0,0,0,-5,0,0,0,0,0,-1517,-1477,-5297,-4059,-2116,-1709,-29981,-29982,-29990,-29986,-29991,-29992,-29993,-29989,-29993,-29994]} 1. Nf3 {[%emt 0:00:01]} d5 {[%emt 0:00:34]} 2. g3 {[%emt 0:00:06]} e6 {[%emt 0:00:42]} 3. Bg2 {[%emt 0:00:04]} Nf6 {[%emt 0:00:13]} 4. O-O {[%emt 0:00:08]} c5 {[%emt 0:00:27]} 5. d3 {[%emt 0:00:18]} Nc6 {[%emt 0:00:55]} 6. c4 {[%emt 0:00:08]} d4 {[%emt 0:00:45]} 7. e3 {[%emt 0:01:23] A09: Réti Opening: 1 Nf3 d5 2 c4.} Bd6 {[%emt 0:02:30]} 8. exd4 {[%emt 0:00:22]} cxd4 {[%emt 0:00:17]} 9. Bg5 {[%emt 0:02:19] The position is equal.} h6 {[%emt 0:05:25]} 10. Bxf6 {[%emt 0:00:42]} Qxf6 {[%emt 0:01:20]} 11. Nbd2 {[%emt 0:01:28][%cal Bb1d2,Bd2b3,Bb3d4,Bd4c2,Bc2e3,Be3g4][%mdl 32]} Qe7 {[%emt 0:02:39]} 12. Nb3 {[%emt 0:02:54]} O-O {[%emt 0:02:59] was the old line (12...e5).} 13. Nfxd4 {[%emt 0:08:03]} Nxd4 {[%emt 0:00:21]} 14. Nxd4 {[%emt 0:00:08]} Be5 $1 {[%emt 0:00:41] [#]} 15. Nc2 $146 {[%emt 0:00:31]} ({Don't blunder} 15. Qg4 $2 f5 16. Nxf5 exf5 $19) ({Predecessor:} 15. Nb3 Bxb2 16. Rb1 Be5 17. Qd2 Qc7 18. Na5 Rb8 19. Rfc1 Bd4 20. c5 e5 21. Nb3 {½-½ (28) Stephan,J (2555)-Turkov,V (2540) ICCF email 2010}) 15... Bxb2 {[%emt 0:00:23]} 16. Rb1 {[%emt 0:00:06]} Bf6 {[%emt 0:00:31]} 17. d4 {[%emt 0:02:46]} Rd8 {[%emt 0:02:36]} 18. Rb3 {[%emt 0:31:04]} Rb8 {[%emt 0:10:21]} 19. Rd3 {[%emt 0:10:34]} b6 {[%emt 0:08:24]} 20. Ne3 Bb7 21. d5 {[%emt 0:12:02]} Bg5 {[%emt 0:05:03]} 22. f4 {[%emt 0:07:59]} Bf6 {[%emt 0:00:14]} 23. d6 {[%emt 0:00:16]} Qf8 {[%emt 0:02:20]} 24. Ng4 {[%emt 0:00:47]} Bxg2 {[%emt 0:01:34]} 25. Kxg2 {[%emt 0:00:22]} Rbc8 {[%emt 0:00:37]} 26. f5 {[%emt 0:04:46]} e5 $1 {[%emt 0:04:42]} ({Don't take} 26... Rxc4 27. fxe6 fxe6 28. Qe2 $16) 27. Nxf6+ {[%emt 0:01:08]} gxf6 {[%emt 0:00:05]} 28. Qg4+ {[%emt 0:00:08]} Kh7 {[%emt 0:01:21]} ({But not} 28... Qg7 29. Qh4 $14) 29. Rfd1 {[%emt 0:01:34]} Rc6 {[%emt 0:00:55]} 30. d7 {[%emt 0:02:50]} Qb4 {[%emt 0:01:18]} 31. Qh5 {[%emt 0:03:01]} Qxc4 {[%emt 0:01:18]} 32. Rd6 $2 {[%emt 0:00:58][%mdl 8192]} ({White should play} 32. Kh3 $15 Kg7 33. Rd6) 32... Kg7 $2 {[%emt 0:04:01] The board is on fire.} (32... Qxa2+ $2 33. Kh3 Rc2 34. Rh1 $18) ({Better is} 32... Rxd6 $19 33. Rxd6 {[#]} Rxd7 $3 {[%mdl 512]} 34. Rxd7 Qc6+ 35. Qf3 Qxd7) 33. Kh3 $15 {[%emt 0:03:00]} Qe4 {[%emt 0:05:21]} 34. R1d2 {[%emt 0:01:18]} b5 {[%emt 0:01:53]} 35. Re6 $1 {[%emt 0:02:17] [#] White wants to mate with Re7.} Rxe6 {[%emt 0:13:39]} 36. fxe6 {[%emt 0:00:06]} fxe6 $11 {[%emt 0:00:30][%mdl 4096] Endgame And now ...Qf5+ would win. KQR-KQR} 37. Qe8 $1 {[%emt 0:00:22]} Qf5+ {[%emt 0:03:35]} 38. Kg2 {[%emt 0:01:57]} Qe4+ {[%emt 0:00:24]} 39. Kf2 {[%emt 0:00:25]} Qb4 {[%emt 0:01:59]} 40. Rd3 {[%emt 0:00:00]} Qc5+ {[%emt 0:00:00]} 41. Ke2 $132 {[%emt 0:21:40][%mdl 2048] White is fighting back} Qc2+ {[%emt 0:04:46]} 42. Rd2 {[%emt 0:00:07]} Qc4+ {[%emt 0:01:17]} 43. Kf2 {[%emt 0:00:32]} Qc5+ {[%emt 0:01:37]} 44. Kg2 $2 {[%emt 0:00:32][%mdl 8192]} (44. Ke2 $11 Qc4+ 45. Ke3 Qc5+ 46. Ke2 Qc4+) 44... Qc6+ $19 {[%emt 0:00:11]} 45. Kh3 {[%emt 0:00:43]} Rxe8 {[%emt 0:00:06]} 46. dxe8=Q {[%emt 0:00:37]} Qxe8 {[%emt 0:00:09] KQ-KR} 47. g4 {[%emt 0:01:04]} Qc6 {[%emt 0:00:18] Black mates.} 48. Kh4 {[%emt 0:00:05]} e4 {[%emt 0:00:51][%cal Be5e4,Be4e3][%mdl 32]} 49. a4 {[%emt 0:00:11]} e3 {[%emt 0:00:38]} 50. Rb2 {[%emt 0:01:11]} bxa4 {[%emt 0:00:48]} 51. h3 {[%emt 0:00:20]} Qf3 {[%emt 0:00:44] Weighted Error Value: White=0.53/Black=0.16 (very precise)} 0-1